Cogmind - Beta 10.2 @@@ ROGUE MODE // 2020.11.02 @ 15:21:43 // Halloween2020/ForbiddenLore Player: EC-422UE Result: Destroyed by G-47 Trooper with Particle Gun Performance ------------- Evolutions (2) 1000 Regions Visited (5) 1000 Robots Destroyed (32) 160 Value Destroyed (834) 834 Prototype IDs (3) 60 Alien Tech Used (0) 0 Bonus (458) 458 TOTAL SCORE: 3512 Bonus ------- High Alert Combat Kills 22 Follower Combat Kills 142 Aligned with FarCom 300 Friendly Fire -6 Cogmind --------- Core Integrity 0/550 Matter 251/300 Energy 100/100 System Corruption 0% Temperature Cool (9) Movement Core (550) Ox10 Location -8/Materials Parts ------- > --- POWER (2) -------- (None) > --- PROPULSION (3) --- (None) > --- UTILITY (4) ------ High-capacity Storage Unit > --- WEAPON (2) ------- (None) > --- INVENTORY (12) --- High-capacity Storage Unit Shield Generator Scythe Peak State ------------ > --- POWER ------------ Light Ion Engine Light Nuclear Core > --- PROPULSION ------- Aluminum Leg Aluminum Leg Aluminum Leg > --- UTILITY ---------- High-capacity Storage Unit ECM Suite Light Armor Plating Skeleton Box > --- WEAPON ----------- Light Assault Rifle Rocket Launcher > --- INVENTORY -------- Deuterium Engine Compact Wheel High-capacity Storage Unit Shield Generator Light Assault Rifle Grenade Launcher Enhanced Flamer [Rating: 20] Favorites ----------- Power Light Ion Engine Engine Light Ion Engine Power Core Light Nuclear Core Propulsion Aluminum Leg Leg Aluminum Leg Wheel Compact Wheel Utility Skeleton Box Device Skeleton Box Storage High-capacity Storage Unit Processor Visual Processing Unit Protection Light Armor Plating Weapon Light Assault Rifle Energy Gun Small Laser Ballistic Gun Light Assault Rifle Launcher Grenade Launcher Special Weapon Enhanced Flamer Build | -11 -10 -10 -10 -9 -8 ------- Run | Scr Mat Min Exi Min Mat Slots Evolved 4 | . . . . . 4 Power 1 | . . . . . 1 Propulsion 1 | . . . . . 1 Utility 2 | . . . . . 2 Weapon . | . . . . . . Parts Attached 42 | 6 6 10 2 3 15 Power 7 | 1 . 3 . . 3 Engine 5 | 1 . 3 . . 1 Core 2 | . . . . . 2 Reactor . | . . . . . . Propulsion 8 | 2 1 2 . 1 2 Treads . | . . . . . . Leg 7 | 2 1 2 . 1 1 Wheel 1 | . . . . . 1 Hover . | . . . . . . Flight . | . . . . . . Utility 9 | 1 3 . 2 . 3 Device 3 | . 1 . 1 . 1 Storage 3 | 1 1 . 1 . . Processor 1 | . 1 . . . . Hackware . | . . . . . . Protection 2 | . . . . . 2 Artifact . | . . . . . . Weapon 18 | 2 2 5 . 2 7 Energy Gun 4 | 2 1 1 . . . Energy Cannon . | . . . . . . Ballistic Gun 8 | . . 4 . 1 3 Ballistic Cannon . | . . . . . . Launcher 5 | . 1 . . 1 3 Special Weapon 1 | . . . . . 1 Impact Weapon . | . . . . . . Slashing Weapon . | . . . . . . Piercing Weapon . | . . . . . . Special Melee Weapon . | . . . . . . Unidentified Prototypes 1 | . . . 1 . . Parts Lost 25 | . 4 4 . . 17 Power 4 | . . . . . 4 Propulsion 5 | . 1 . . . 4 Utility 4 | . . . . . 4 Weapon 12 | . 3 4 . . 5 Highest Loss Streak 9 | . 2 3 . . 9 Average Slot Usage (%) 90 | . 90 97 85 99 67 Engine 12 | . 14 14 14 14 3 Core 1 | . . . . . 6 Leg 25 | . 27 28 28 28 14 Device 9 | . 2 . 10 14 12 Storage 13 | . 14 14 14 14 9 Processor 3 | . 9 14 3 . . Protection 1 | . . . . . 5 Energy Gun 2 | . 19 3 . . . Ballistic Gun 12 | . . 22 14 14 9 Launcher 6 | . 2 . . 13 2 Naked Turns . | . . . . . . Heaviest Build 48 | 12 28 23 38 41 48 Greatest Support 30 | 20 20 20 20 20 30 Greatest Overweight (x) 14 | 1 2 1 1 2 14 Average Overweight (x) 1 | . 1 . . 1 1 Largest Inventory Capacity 12 | 6 12 10 12 12 12 Average Capacity 11 | 5 9 10 10 12 12 Most Carried 10 | 4 7 7 7 10 9 Average Carried 6 | 2 5 5 6 8 5 Final Capacity 12 | 6 10 10 12 12 12 Final Carried 10 | 3 6 6 7 10 3 Class Distribution -------------------- 87% | Mutant 12% | Scavenger-Mutant Dominant Class ---------------- Mutant | -10/Materials Mutant | -10/Mines Mutant | -10/Exiles Mutant | -9/Mines Mutant | -8/Materials Resources | -11 -10 -10 -10 -9 -8 ----------- Run | Scr Mat Min Exi Min Mat Matter Collected 778 | 188 . 295 . 50 245 Remotely . | . . . . . . Salvage Created 738 | . 118 158 . . 462 Parts 50 | . 6 17 . . 27 Haulers Intercepted . | . . . . . . Recyclers Shooed 1 | . . . . . 1 Parts Field Recycled . | . . . . . . Retrieved Matter . | . . . . . . Parts Self-Destructed . | . . . . . . Prevented . | . . . . . . Kills | -11 -10 -10 -10 -9 -8 ------- Run | Scr Mat Min Exi Min Mat Combat Hostiles Destroyed 24 | . 5 8 . . 11 Melee 1 | . . . . . 1 Guns 9 | . 2 6 . . 1 AOE 14 | . 3 2 . . 9 Classes Destroyed 6 | . 3 . . . 3 Worker 6 | . 1 . . . 5 Builder 1 | . . . . . 1 Recycler 1 | . . . . . 1 Swarmer 9 | . 3 6 . . . Grunt 14 | . 2 2 . . 10 Sentry 1 | . . . . . 1 Best Kill Streak 5 | . 4 2 . . 5 Combat Bots Only 3 | . 3 2 . . 3 Max Kills in Single Turn 3 | . 2 2 . . 3 Gunslinging . | . . . . . . Exploded 2 | . 2 2 . . 2 Melee 1 | . . . . . 1 Uniques/NPCs Destroyed . | . . . . . . Combat | -11 -10 -10 -10 -9 -8 -------- Run | Scr Mat Min Exi Min Mat Damage Taken 3051 | . 551 612 . 4 1884 Core 800 | . 176 62 . . 562 Absorbed by Shields . | . . . . . . Core Remaining (%) 52 | 100 . . . 4 . Volleys Fired 84 | . 24 29 . . 31 Largest 2 | . 2 2 . . 2 Hottest 100 | . 90 60 . . 100 Shots Fired 137 | . 38 43 . . 56 Gun 109 | . 35 42 . . 32 Cannon . | . . . . . . Launcher 23 | . 3 1 . . 19 Special 5 | . . . . . 5 Kinetic 71 | . . 39 . . 32 Thermal 43 | . 35 3 . . 5 Explosive 23 | . 3 1 . . 19 Electromagnetic . | . . . . . . Robot Hit Streak 12 | . 12 9 . . 6 Robot Miss Streak 4 | . 3 2 . . 4 Penetration Max . | . . . . . . Secondary Targets 1 | . . 1 . . . Max Gunslinging Chain 1 | . . 1 . . . Shots Hit Robots 91 | . 29 32 . . 30 Core Hits 67 | . 9 15 . . 43 Critical Hits . | . . . . . . Critical Kills . | . . . . . . Critical Parts Destroyed . | . . . . . . Melee Attacks . | . . . . . . Impact . | . . . . . . Slashing . | . . . . . . Piercing . | . . . . . . Sneak Attacks . | . . . . . . Combat Hostiles . | . . . . . . Follow-up Attacks . | . . . . . . Damage Inflicted 2629 | . 524 400 . 9 1696 Guns 727 | . 306 261 . . 160 Cannons . | . . . . . . Explosions 1834 | . 218 137 . . 1479 Melee . | . . . . . . Ramming 35 | . . 2 . 9 24 Kinetic 410 | . . 250 . . 160 Thermal 350 | . 306 11 . . 33 Explosive 1834 | . 218 137 . . 1479 Electromagnetic . | . . . . . . Impact . | . . . . . . Slashing . | . . . . . . Piercing . | . . . . . . Highest Corruption . | . . . . . . Average Corruption . | . . . . . . Corruption Purged . | . . . . . . Overload Shots . | . . . . . . Overflow Damage 43 | . 16 26 . . 1 Projectiles . | . . . . . . Explosions 43 | . 16 26 . . 1 Melee . | . . . . . . Knockbacks . | . . . . . . Impact . | . . . . . . Kinetic . | . . . . . . Secondary . | . . . . . . Self-Inflicted Damage 293 | . 171 33 . 4 85 Shots 8 | . 4 1 . . 3 Rammed 3 | . . 1 . 1 1 Targets Rammed 4 | . . 1 . 1 2 Kicked 1 | . . . . . 1 Crushed . | . . . . . . Highest Temperature 454 | . 454 40 . . 124 Average Temperature 117 | . 234 19 . . 31 Received Heat Transfer 903 | . 162 147 . . 594 Effects 6 | . 6 . . . . Shutdowns 2 | . 2 . . . . Energy Bleed 1 | . 1 . . . . Matter Decay 1 | . 1 . . . . Short Circuit 1 | . 1 . . . . Damage (minor) 1 | . 1 . . . . Siege Activations . | . . . . . . Robots Corrupted . | . . . . . . Combat Hostiles . | . . . . . . Parts Fried . | . . . . . . Impact Corruptions . | . . . . . . Robots Melted . | . . . . . . Combat Hostiles . | . . . . . . Parts Melted . | . . . . . . Heat Transferred 1059 | . 794 25 . . 240 Parts Sabotaged . | . . . . . . Parts Stolen . | . . . . . . Parts Stripped . | . . . . . . Power Chain Reactions . | . . . . . . Missiles Intercepted . | . . . . . . Alert | -11 -10 -10 -10 -9 -8 ------- Run | Scr Mat Min Exi Min Mat Peak Influence 429 | . 170 222 . . 429 Initial 62 | . . 62 . . . Average 66 | . 41 137 . . 178 Maximum Alert Level 2 | . . 1 . . 2 Low Security (%) 87 | 100 100 87 . 100 49 Level 1 11 | . . 12 . . 44 Level 2 1 | . . . . . 6 Level 3 . | . . . . . . Level 4 . | . . . . . . Level 5 . | . . . . . . High Security . | . . . . . . Max Security . | . . . . . . Squads Dispatched 8 | . 1 . . . 7 Investigation 1 | . . . . . 1 Extermination . | . . . . . . Reinforcement 4 | . 1 . . . 3 Assault . | . . . . . . Garrison 3 | . . . . . 3 Intercept . | . . . . . . Construction Impeded 1 | . . . . . 1 Haulers Reinforced . | . . . . . . Stealth | -11 -10 -10 -10 -9 -8 --------- Run | Scr Mat Min Exi Min Mat Distress Signals 4 | . . . . . 4 Communications Jammed . | . . . . . . Distress Signals . | . . . . . . Times Spotted 51 | . 13 8 . . 30 Peak Tracking Total 9 | . 5 3 . . 9 Tactical Retreats 3 | . . . . . 3 Traps | -11 -10 -10 -10 -9 -8 ------- Run | Scr Mat Min Exi Min Mat Traps Triggered . | . . . . . . Indirectly . | . . . . . . Trap Hack Attempts . | . . . . . . Triggered . | . . . . . . Disarmed 3 | . . . . . 3 Reprogrammed . | . . . . . . Reused . | . . . . . . Traps Extracted . | . . . . . . Installed . | . . . . . . Triggered . | . . . . . . Machines | -11 -10 -10 -10 -9 -8 ---------- Run | Scr Mat Min Exi Min Mat Machines Disabled 5 | . 2 . . . 3 Max in Single Turn 2 | . 1 . . . 2 Machines Sabotaged . | . . . . . . Garrisons Compromised . | . . . . . . Overloaded Fab Kills . | . . . . . . Fab Network Shutdowns . | . . . . . . Hacking | -11 -10 -10 -10 -9 -8 --------- Run | Scr Mat Min Exi Min Mat Machines Accessed 1 | . . . . . 1 Terminals 1 | . . . . . 1 Fabricators . | . . . . . . Repair Stations . | . . . . . . Recycling Units . | . . . . . . Scanalyzers . | . . . . . . Garrison Access . | . . . . . . Total Hacks 3 | . . . . . 3 Successful 2 | . . . . . 2 Failed 1 | . . . . . 1 Catastrophic . | . . . . . . Database Lockouts . | . . . . . . Manual 1 | . . . 1 . . Terminals 3 | . . . . . 3 Fabricators . | . . . . . . Repair Stations . | . . . . . . Recycling Units . | . . . . . . Scanalyzers . | . . . . . . Garrison Access . | . . . . . . Terminal Hacks 2 | . . . . . 2 Prototype ID Bank 1 | . . . . . 1 Disarm Traps 1 | . . . . . 1 Fabricator Hacks . | . . . . . . Repair Station Hacks . | . . . . . . Recycling Unit Hacks . | . . . . . . Scanalyzer . | . . . . . . Garrison Access Hacks . | . . . . . . Unauthorized Hacks . | . . . . . . Terminals . | . . . . . . Fabricators . | . . . . . . Repair Stations . | . . . . . . Recycling Units . | . . . . . . Scanalyzers . | . . . . . . Garrison Access . | . . . . . . Data Cores Recovered . | . . . . . . Used . | . . . . . . Hacking Detections 1 | . . . . . 1 Full Trace Events 1 | . . . . . 1 Feedback Events . | . . . . . . Feedback Blocked . | . . . . . . Robot Schematics Acquired . | . . . . . . Robots Built . | . . . . . . Matter . | . . . . . . Time . | . . . . . . Total Robot Build Rating . | . . . . . . Part Schematics Acquired . | . . . . . . Parts Built . | . . . . . . Matter . | . . . . . . Time . | . . . . . . Total Part Build Rating . | . . . . . . Parts Repaired . | . . . . . . Time . | . . . . . . Parts Recycled . | . . . . . . Recycled Matter . | . . . . . . Retrieved Matter . | . . . . . . Retrieved Components . | . . . . . . Parts Scanalyzed . | . . . . . . Part Schematics Acquired . | . . . . . . Parts Damaged . | . . . . . . Bothacking | -11 -10 -10 -10 -9 -8 ------------ Run | Scr Mat Min Exi Min Mat Used RIF Installer . | . . . . . . Robots Hacked . | . . . . . . Non-combat . | . . . . . . Combat . | . . . . . . Robot Hacks Applied . | . . . . . . Relay Couplers Released . | . . . . . . Robots Rewired . | . . . . . . Allies Hacked . | . . . . . . Hacks Repelled . | . . . . . . Allies | -11 -10 -10 -10 -9 -8 -------- Run | Scr Mat Min Exi Min Mat Total Allies 3 | . . . . 3 . Largest Group 3 | . . . . 3 3 Highest-Rated Group 40 | . . . . 40 40 Highest-Rated Ally 16 | . . . . 16 16 Total Orders . | . . . . . . Ally Attacks 32 | . . . . . 32 Total Damage 401 | . . . . . 401 Kills 4 | . . . . . 4 Allies Corrupted . | . . . . . . Allies Melted . | . . . . . . Intel | -11 -10 -10 -10 -9 -8 ------- Run | Scr Mat Min Exi Min Mat Robot Analysis Total . | . . . . . . Derelict Logs Recovered 1 | . . . . 1 . Drone Launches . | . . . . . . Drone Recoveries . | . . . . . . Exploration | -11 -10 -10 -10 -9 -8 ------------- Run | Scr Mat Min Exi Min Mat Turns Passed 3214 | 75 316 445 586 1232 560 Spaces Moved 1789 | 51 148 238 412 644 296 Core 11 | 7 . . . . 4 Treads . | . . . . . . Legs 1662 | 44 148 238 412 644 176 Wheels 116 | . . . . . 116 Hover . | . . . . . . Flight . | . . . . . . Fastest Speed 50 | 50 120 120 120 150 110 Average Speed 157 | 119 152 147 140 178 152 Slowest Speed 750 | 150 180 150 150 180 750 Overloaded Moves . | . . . . . . Propulsion Burnouts . | . . . . . . Robots Hopped . | . . . . . . Cave-ins Triggered . | . . . . . . Exploration Rate (%) 50 | 5 38 44 82 96 37 Regions Visited 5 Branch Regions 3 Pre-discovered Areas 1 | . . . . 1 . Known Exits Taken . | . . . . . . Unknown Exits Taken 5 | 1 1 1 1 1 . Scrap Searched 3 | . . . . 3 . Spaces Dug . | . . . . . . Terrain Destroyed 114 | . 26 12 . . 76 Melee . | . . . . . . Projectile . | . . . . . . AOE 114 | . 26 12 . . 76 Terrain Rammed . | . . . . . . Walls Destroyed . | . . . . . . Machines Disabled . | . . . . . . Actions | -11 -10 -10 -10 -9 -8 --------- Run | Scr Mat Min Exi Min Mat Total 2054 | 65 203 296 417 722 351 Wait 91 | . 13 6 . 71 1 Move 1784 | 50 147 237 411 643 296 Hop . | . . . . . . Pick Up 39 | 9 9 9 3 4 5 Fast Attach . | . . . . . . Attach 28 | 6 5 5 . 1 11 Detach 1 | . 1 . . . . Swap 14 | . 1 5 2 2 4 Drop 9 | . 3 4 1 . 1 Fire 84 | . 24 29 . . 31 Melee . | . . . . . . Ram 1 | . . . . . 1 Kick 3 | . . 1 . 1 1 Crush . | . . . . . . Escape Stasis . | . . . . . . Rewire . | . . . . . . Trap . | . . . . . . Miscellaneous . | . . . . . . Route ------- -11/Scrapyard -10/Materials -10/Mines -10/Exiles (discovered 2 exits: [*Min x2]) -9/Mines -8/Materials History --------- Turn | Location | Event 21 | -11/Scrapyard | Discovered new exit (range 15) 76 | -11/Scrapyard | Entered Materials 305 | -10/Materials | Build established: Mutant 353 | -10/Materials | Core integrity fell below 50% 358 | -10/Materials | Discovered new exit (range 18) 392 | -10/Materials | Entered Mines 399 | -10/Mines | Core integrity fell below 20% 425 | -10/Mines | Lost 3 parts (1n2w) 831 | -10/Mines | Deemed a non-threat by the Exiles lab entrance 831 | -10/Mines | Discovered new exit (range 5) 837 | -10/Mines | Entered Exiles 853 | -10/Exiles | Discovered new exit (range 17) 865 | -10/Exiles | Met 8R-AWN 888 | -10/Exiles | Met EX-HEX 923 | -10/Exiles | Met EX-BIN 941 | -10/Exiles | Aligned with FarCom system 942 | -10/Exiles | Given EX-Vault access code 979 | -10/Exiles | Opened EX-Vault 989 | -10/Exiles | Found Prototype Device 990 | -10/Exiles | Identified Skeleton Box 1023 | -10/Exiles | Warned to stay clear of 0b10 Research branches 1065 | -10/Exiles | Met EX-DEC 1181 | -10/Exiles | Visited The Gauntlet 1403 | -10/Exiles | Discovered new exit (range 14) 1423 | -10/Exiles | Left Exiles lab with Skeleton Box 1423 | -10/Exiles | Entered Mines 1454 | -9/Mines | YI-UF0 nonchalantly dropped a Grenade Launcher on the ground 2096 | -9/Mines | A weapon hastily lodged in a ceiling crevice suddenly fell to the ground 2407 | -9/Mines | Received a Rocket Launcher from a helpful Derelict 2608 | -9/Mines | Discovered new exit (range 15) 2637 | -9/Mines | Assisted by bots powering up and referring to "LRC-V3" 2655 | -9/Mines | Entered Materials 2655 | -8/Materials | Accompanied by 3 allies 2655 | -8/Materials | Evolved 4 slots: Power x1, Propulsion x1, Utility x2 2917 | -8/Materials | Garrison activated, responded to threat 3051 | -8/Materials | Core integrity fell below 50% 3079 | -8/Materials | Lost 9 parts (2p1n1u5w) 3172 | -8/Materials | Core integrity fell below 20% 3215 | -8/Materials | Destroyed by G-47 Trooper with Particle Gun Last Messages --------------- 03167_ Acquired Hrd. Medium Armor Plating. 03167_ Slug penetrates Wall. 03171_ Slug penetrates Door. 03172_ Acquired Scythe. 03174_ Penetrated by Slug. 03176_ Nuclear Core destroyed. 03178_ O-16 Technician: "IFF HANDSHAKE FAILED. SECURING TERMINAL." 03178_ Penetrated by Slug. 03178_ R-06 Scavenger destroyed. 03183_ O-16 Technician uses terminal to summon reinforcements. 03183_ ALERT: Hostiles spotted, dispatching reinforcements to Terminal M012. 03183_ O-16 Technician locks terminal. 03184_ K-01 Serf collects debris. 03193_ Slug penetrates Wall. 03193_ K-01 Serf collects debris. 03196_ Penetrated by Slug. 03196_ Terminal disabled. 03199_ Com. Wheel destroyed. 03202_ Hrd. Medium Armor Plating destroyed. Map ----- +----------------------------------------------------+ | ???????# #???????????? | | ???????# #????#??????? | | ######## #????# ###### | | #! = # ################????# | | # # #???????????????????# | | # " +????????????????#### """ | | # """ # #????????????????+ "T" | | # """ # #????????????????# | | # """ # #??????????????+## | | ########= #?????????????# | | ???????#%! #?????????????# / | | ???????#! #?######??????# | | ???????# #? +??w??? | | ???????# Y# #???????+############ | | ???????# # #????????????######## | | ???????# / #????????????# | | ???????+ # #????????????# """ | | ???????# Y#???? #????????????# | | ???????##Y##???????????????????#! | | ????????# #????????????????????# | | ????????# #????????????????????# | | ????????#h#????????????????????# | | ????????# #????????????????????# [ | | ???????## ##????????? #????????# %% | | ???????# o ###### #?Y??????#### | | ???????# g @ g + """?????? | | ???????# ###### #????g????w | | ???????#####????????? #???????? # | | ??????????????????????????????####### # | | ????????????????????????????????????#+? | | ???????????????????????????????????? ? | | ???????????????????????????????????? ? | | ????????????????????????????????????""? | | ????????????????????????????????????""? | | ??????????????????????????????????????? | | ??????????????????????????????????????? | | ??????????????????????????????????????? | | ??????????????????????????????????????? | | ??????????????????????????????????????? | | ??????????????????????????????????????? | | ??????????????????????????????????????? | | ??????????????????????????????????????? | | ??????????????????????????????????????? | | ??????????????????????????????????????? | | ??????????????????????????????????????? | | ??????????????????????????????????????? | | ??????????????????????????????????????? | | ??????????????????????????????????????? | | ??????????????????????????????????????? | | ??????????????????????????????????????? | +----------------------------------------------------+ Best States ------------- Heat Dissipation 31 Energy Generation 19 Energy Capacity 275 Matter Stores 300 Matter Capacity 300 Sight Range 18 Terrain Scan Density 10 ECM Strength 1 Armor Coverage 225 Evasion (%) 40 Item Schematics ----------------- None Robot Schematics ------------------ None Fabricated ------------ Nothing Alien Tech Used ----------------- None Achievements -------------- Close Call Challenges ------------ None Game ------ Seed RecyclingDynamicMegatreads Manual? 0 Play Time 00:22:38 Cumulative 29.3 hours Start 2020.11.02 @ 14:58:26 End 2020.11.02 @ 15:21:43 Sessions 1 Manual Loads 0 Difficulty Rogue Special Mode Halloween2020/ForbiddenLore Game No. 51 Rogue 51 Adventurer 0 Explorer 0 Win Type - Total 0 Types 0/0/0/0/0/0/0/0/0 Lore% 24 Gallery% 41 Achievement% 26 Wizard Run 0 Options --------- ASCII 0 Keyboard 0 Movement Mouse Keybinds 0 Fullscreen 2 Font 18/SmallcapsGlow Map View 76x50 Tactical HUD 1 Map Filters NONE Filters NONE Steam 1 RUN: e985e601-d8a4-45cf-9d51-d245f6a8f43e